bitfinex-derivatives/quotes_BNBF0:USTF0_20250326
["timestamp","ask_amount","ask_price","bid_price","bid_amount"]
[1742978786547,1.19215813,632.93,632.41,1.18127764]
[1742978786747,1.19215813,632.92,632.41,1.18127764]
[1742978786948,2.41627444,633.72,632.41,1.18127764]
[1742978786949,1.19215813,632.91,632.41,1.18127764]
[1742978787149,1.19215813,632.9,632.41,1.18127764]
[1742978787349,1.19215813,632.89,632.41,1.18127764]
[1742978787549,1.19215813,632.88,632.41,1.18127764]
[1742978787742,1.19215813,632.87,632.41,1.18127764]
[1742978787942,1.19215813,632.86,632.41,1.18127764]
[1742978788143,1.19215813,632.85,632.41,1.18127764]
[1742978788345,1.19215813,632.84,632.41,1.18127764]
[1742978788548,1.19215813,632.84,631.9,2.40871339]
[1742978788549,1.19215813,632.83,632.4,1.18127764]
[1742978788745,1.19215813,632.82,632.4,1.18127764]
[1742978788947,1.19215813,632.81,632.4,1.18127764]
[1742978789146,1.19215813,632.8,632.4,1.18127764]
[1742978789347,1.19215813,632.79,632.4,1.18127764]
[1742978789649,1.19215813,632.78,632.4,1.18127764]
[1742978789849,1.19215813,632.77,632.4,1.18127764]
[1742978790048,1.19215813,632.76,632.4,1.18127764]
[1742978790247,1.19215813,632.75,632.4,1.18127764]
[1742978790443,1.19215813,632.74,632.4,1.18127764]
[1742978790648,1.19215813,632.73,632.4,1.18127764]
[1742978790844,1.19215813,632.72,632.4,1.18127764]
[1742978791043,1.19215813,632.71,632.4,1.18127764]
[1742978791245,1.19215813,632.7,632.4,1.18127764]
[1742978791449,1.19215813,632.69,632.4,1.18127764]
[1742978791650,1.19215813,632.68,632.4,1.18127764]
[1742978791845,1.19215813,632.67,632.4,1.18127764]
[1742978792043,1.19215813,632.66,632.4,1.18127764]
[1742978792349,1.19215813,632.65,632.4,1.18127764]
[1742978792550,1.19215813,632.64,632.4,1.18127764]
[1742978792747,1.19215813,632.63,632.4,1.18127764]
[1742978792952,1.19215813,632.62,632.4,1.18127764]
[1742978793152,1.19215813,632.61,632.4,1.18127764]
[1742978793353,1.19215813,632.6,632.41,1.18127764]
[1742978793546,1.19215813,632.59,632.41,1.18127764]
[1742978793749,1.19215813,632.58,632.41,1.18127764]
[1742978793951,1.232,632.77,632.41,1.18127764]
[1742978794146,1.1920888,632.76,632.41,1.18127764]
[1742978794350,1.1920888,632.75,632.41,1.18127764]
[1742978794548,1.1920888,632.74,632.41,1.18127764]
[1742978794748,1.1920888,632.73,632.41,1.18127764]
[1742978794952,1.1920888,632.72,632.41,1.18127764]
[1742978795153,1.1920888,632.71,632.4,1.18127764]
[1742978795349,1.1920888,632.7,632.4,1.18127764]
[1742978795552,1.1920888,632.69,632.4,1.18127764]
[1742978795749,1.1920888,632.68,632.4,1.18127764]
[1742978795954,1.1920888,632.67,632.4,1.18127764]
[1742978796251,1.1920888,632.66,632.4,1.18127764]
[1742978796457,1.1920888,632.65,632.4,1.18127764]
[1742978796658,1.1920888,632.64,632.4,1.18127764]
[1742978796858,1.1920888,632.63,632.4,1.18127764]
[1742978797058,1.1920888,632.62,632.4,1.18127764]
[1742978797358,1.1920888,632.61,632.4,1.18127764]
[1742978797559,1.1920888,632.6,632.4,1.18127764]
[1742978797757,1.1920888,632.59,632.4,1.18127764]
[1742978798054,1.1920888,632.58,632.4,1.18127764]
[1742978798260,1.1920888,632.57,632.4,1.18127764]
[1742978798459,1.1920888,632.56,632.4,1.18127764]
[1742978798661,1.1920888,632.55,632.4,1.18127764]
[1742978798860,1.1920888,632.54,632.4,1.18127764]
[1742978799160,1.1920888,632.53,632.4,1.18127764]
[1742978799354,1.1920888,632.52,632.4,1.18127764]
[1742978799561,1.1920888,632.51,632.4,1.18127764]
[1742978799761,1.1920888,632.5,632.4,1.18127764]
[1742978800062,1.1920888,632.49,632.4,1.18127764]
[1742978800259,1.1920888,632.48,632.4,1.18127764]
[1742978800459,1.1920888,632.47,632.4,1.18127764]
[1742978800659,1.1920888,632.46,632.4,1.18127764]
[1742978800860,1.1920888,632.45,632.4,1.18127764]
[1742978801057,1.232,632.77,632.4,1.18127764]
[1742978801259,1.19188728,632.76,632.4,1.18127764]
[1742978801461,1.19188728,632.75,632.4,1.18127764]
[1742978801661,1.19188728,632.74,632.4,1.18127764]
[1742978801862,1.19188728,632.73,632.38,1.18127764]
[1742978802162,1.19188728,632.72,632.38,1.18127764]
[1742978802357,1.19188728,632.71,632.38,1.18127764]
[1742978802661,1.19188728,632.7,632.38,1.18127764]
[1742978802862,1.19188728,632.69,632.38,1.18127764]
[1742978803057,1.19188728,632.68,632.38,1.18127764]
[1742978803264,1.19188728,632.67,632.38,1.18127764]
[1742978803558,1.19188728,632.66,632.38,1.18127764]
[1742978803763,1.19188728,632.65,632.38,1.18127764]
[1742978803962,1.19188728,632.64,632.38,1.18127764]
[1742978804165,1.1918856,632.63,632.34,1.18127764]
[1742978804357,1.1918856,632.62,632.34,1.18127764]
[1742978804560,1.1918856,632.61,632.34,1.18127764]
[1742978804759,1.1918856,632.6,632.34,1.18127764]
[1742978804962,1.1918856,632.59,632.34,1.18127764]
[1742978805162,1.1918856,632.58,632.34,1.18127764]
[1742978805363,1.1918856,632.57,632.34,1.18127764]
[1742978805562,1.1918856,632.56,632.34,1.18127764]
[1742978805757,0.428,632.66,632.34,1.18127764]
[1742978805962,1.19172564,632.65,632.34,1.18127764]
[1742978806164,1.19172564,632.64,632.29,1.18127764]
[1742978806365,1.19172564,632.63,632.29,1.18127764]
[1742978806557,1.19172564,632.62,632.29,1.18127764]
[1742978806762,1.19172564,632.61,632.29,1.18127764]
[1742978806962,1.19172564,632.6,632.29,1.18127764]
[1742978807162,1.19172564,632.59,632.29,1.18127764]
[1742978807359,1.19172564,632.58,632.29,1.18127764]
[1742978807562,1.19172564,632.57,632.29,1.18127764]
[1742978807757,1.19172564,632.56,632.29,1.18127764]
[1742978807959,1.19172564,632.55,632.29,1.18127764]
[1742978808163,1.19172564,632.54,632.26,1.18127764]
[1742978808363,1.19172564,632.53,632.26,1.18127764]
[1742978808563,1.19172564,632.52,632.26,1.18127764]
[1742978808864,1.19172564,632.51,632.26,1.18127764]
[1742978809064,1.19172564,632.5,632.26,1.18127764]
[1742978809258,1.19172564,632.49,632.26,1.18127764]
[1742978809464,1.19172564,632.48,632.26,1.18127764]
[1742978809660,1.19172564,632.47,632.26,1.18127764]
[1742978809962,0.428,632.66,632.26,1.18127764]
[1742978809963,1.1918363,632.46,632.26,1.18127764]
[1742978810166,1.19183093,632.45,632.26,1.18127764]
[1742978810364,1.19183093,632.44,632.26,1.18127764]
[1742978810564,1.19183093,632.43,632.22,1.18127764]
[1742978810764,1.19183093,632.42,632.22,1.18127764]
[1742978810964,0.428,632.66,632.22,1.18127764]
[1742978811165,1.19180006,632.65,632.22,1.18127764]
[1742978811465,1.19180006,632.64,632.22,1.18127764]
[1742978811668,1.19180006,632.63,632.22,1.18127764]
[1742978811966,1.19180006,632.62,632.22,1.18127764]
[1742978812166,1.19178621,632.61,632.22,1.18127764]
[1742978812465,1.19178621,632.6,632.22,1.18127764]
[1742978812666,1.19178621,632.59,632.24,1.18127764]
[1742978812867,1.19178621,632.58,632.24,1.18127764]
[1742978813067,1.19178621,632.57,632.24,1.18127764]
[1742978813266,1.19178621,632.56,632.24,1.18127764]
[1742978813465,1.19178621,632.55,632.24,1.18127764]
[1742978813666,1.19178621,632.54,632.24,1.18127764]
[1742978813866,1.19178621,632.53,632.24,1.18127764]
[1742978814066,1.19178621,632.52,632.24,1.18127764]
[1742978814266,1.19178621,632.51,632.24,1.18127764]
[1742978814469,1.19178621,632.5,632.24,1.18127764]
[1742978814668,1.19178621,632.49,632.24,1.18127764]
[1742978814868,1.19178621,632.48,632.24,1.18127764]
[1742978815067,1.19178621,632.47,632.24,1.18127764]
[1742978815268,1.19178621,632.46,632.3,1.18127764]
[1742978815463,1.19178621,632.45,632.3,1.18127764]
[1742978815664,1.19178621,632.44,632.3,1.18127764]
[1742978815867,1.19178621,632.43,632.3,1.18127764]
[1742978816069,1.233,632.62,632.3,1.18127764]
[1742978816272,1.19158728,632.61,632.3,1.18127764]
[1742978816572,1.19158728,632.6,632.34,1.18127764]
[1742978816771,1.19158728,632.59,632.34,1.18127764]
[1742978816973,1.19158728,632.58,632.34,1.18127764]
[1742978817174,1.19158728,632.57,632.34,1.18127764]
[1742978817374,1.19158728,632.56,632.34,1.18127764]
[1742978817675,1.19158728,632.55,632.34,1.18127764]
[1742978817974,1.19158728,632.54,632.34,1.18127764]
[1742978818274,1.1915896,632.53,632.34,1.18127764]
[1742978818573,1.1915896,632.52,632.34,1.18127764]
[1742978818775,1.1915896,632.51,632.34,1.18127764]
[1742978818978,1.1915896,632.5,632.34,1.18127764]
[1742978819171,1.1915896,632.49,632.34,1.18127764]
[1742978819373,1.1915896,632.48,632.34,1.18127764]
[1742978819679,1.1915896,632.47,632.34,1.18127764]
[1742978819875,1.1915896,632.46,632.34,1.18127764]
[1742978820176,1.1915896,632.45,632.35,1.18127764]
[1742978820373,1.1915896,632.44,632.35,1.18127764]
[1742978820573,1.233,632.62,632.35,1.18127764]
[1742978820769,1.19151715,632.61,632.35,1.18127764]
[1742978820970,1.19151715,632.6,632.35,1.18127764]
[1742978821170,1.19151715,632.59,632.35,1.18127764]
[1742978821378,1.19151715,632.58,632.35,1.18127764]
[1742978821576,1.19151715,632.57,632.35,1.18127764]
[1742978821771,1.233,632.62,632.35,1.18127764]
[1742978821772,1.19151715,632.56,632.35,1.18127764]
[1742978821977,1.19151715,632.55,632.35,1.18127764]
[1742978822178,1.233,632.62,632.35,1.18127764]
[1742978822377,1.1915366,632.61,632.35,1.18127764]
[1742978822578,1.1915366,632.6,632.35,1.18127764]
[1742978822777,1.1915366,632.59,632.35,1.18127764]
[1742978822972,1.1915366,632.58,632.35,1.18127764]
[1742978823177,1.1915366,632.57,632.35,1.18127764]
[1742978823378,1.1915366,632.56,632.35,1.18127764]
[1742978823577,1.1915366,632.55,632.35,1.18127764]
[1742978823774,1.1915366,632.54,632.35,1.18127764]
[1742978824082,1.1915366,632.53,632.35,1.18127764]
[1742978824381,1.19148722,632.52,632.35,1.18127764]
[1742978824677,1.19148722,632.51,632.35,1.18127764]
[1742978824877,1.19148722,632.5,632.35,1.18127764]
[1742978825074,1.19148722,632.49,632.32,1.18127764]
[1742978825272,1.19148722,632.48,632.32,1.18127764]
[1742978825477,1.19148722,632.47,632.32,1.18127764]
[1742978825683,1.19148722,632.46,632.32,1.18127764]
[1742978825873,1.19148722,632.45,632.32,1.18127764]
[1742978826071,1.19148722,632.44,632.32,1.18127764]
[1742978826379,1.19148722,632.43,632.32,1.18127764]
[1742978826581,1.19148722,632.42,632.32,1.18127764]
[1742978826879,1.233,632.62,632.32,1.18127764]
[1742978827075,1.19173712,632.61,632.32,1.18127764]
[1742978827282,1.19173712,632.6,632.3,1.18127764]
[1742978827579,1.19173712,632.59,632.3,1.18127764]
[1742978827774,1.19173712,632.58,632.3,1.18127764]
[1742978827973,1.19173712,632.57,632.3,1.18127764]
[1742978828179,1.19173712,632.56,632.3,1.18127764]
[1742978828372,1.19173712,632.55,632.3,1.18127764]
[1742978828576,1.19173712,632.54,632.3,1.18127764]
[1742978828778,1.19173712,632.53,632.3,1.18127764]
[1742978828978,1.19173712,632.52,632.3,1.18127764]
[1742978829180,1.19173712,632.51,632.3,1.18127764]
[1742978829479,1.19173712,632.5,632.3,1.18127764]
[1742978829776,1.19173712,632.49,632.3,1.18127764]
[1742978829982,1.19173712,632.48,632.3,1.18127764]
[1742978830275,1.19147336,632.47,632.21,1.18127764]
[1742978830482,1.19147336,632.46,632.21,1.18127764]
[1742978830674,1.19147336,632.45,632.21,1.18127764]
[1742978830982,1.19147336,632.44,632.21,1.18127764]
[1742978831180,1.19147336,632.43,632.21,1.18127764]
[1742978831377,1.19147336,632.42,632.21,1.18127764]
[1742978831582,1.19147336,632.41,632.21,1.18127764]
[1742978831880,1.19147336,632.4,632.21,1.18127764]
[1742978832078,1.19147336,632.39,632.21,1.18127764]
[1742978832281,1.19147336,632.38,632.21,1.18127764]
[1742978832481,0.429,632.53,632.21,1.18127764]
[1742978832684,1.19125717,632.52,632.23,1.18127764]
[1742978832876,1.19125717,632.51,632.23,1.18127764]
[1742978833077,1.19125717,632.5,632.23,1.18127764]
[1742978833279,1.19125717,632.49,632.23,1.18127764]
[1742978833475,1.19125717,632.48,632.23,1.18127764]
[1742978833682,1.19125717,632.47,632.23,1.18127764]
[1742978833876,1.19125717,632.46,632.23,1.18127764]
[1742978834181,1.19125717,632.45,632.23,1.18127764]
[1742978834481,1.19125717,632.44,632.23,1.18127764]
[1742978834682,1.19125717,632.43,632.23,1.18127764]
[1742978834876,1.19125717,632.42,632.23,1.18127764]
[1742978835081,1.19125717,632.41,632.23,1.18127764]
[1742978835278,1.19125717,632.4,632.23,1.18127764]
[1742978835485,1.19125717,632.39,632.22,1.18127764]
[1742978835682,1.19125717,632.38,632.22,1.18127764]
[1742978835985,1.19125717,632.37,632.22,1.18127764]
[1742978836184,1.19125717,632.36,632.22,1.18127764]
[1742978836482,1.19125717,632.35,632.22,1.18127764]
[1742978836685,1.19125717,632.34,632.22,1.18127764]
[1742978836881,1.19125717,632.33,632.22,1.18127764]
[1742978837183,1.19125717,632.32,632.22,1.18127764]
[1742978837385,0.429,632.53,632.22,1.18127764]
[1742978837585,1.19019497,632.52,632.22,1.18127764]
[1742978837784,1.19019497,632.51,632.22,1.18127764]
[1742978837978,1.19020366,632.5,632.22,1.18127764]
[1742978838180,1.19020366,632.49,632.22,1.18127764]
[1742978838383,1.19020366,632.48,632.22,1.18127764]
[1742978838581,1.19020366,632.47,632.06,1.18127764]
[1742978838787,1.19020366,632.46,632.06,1.18127764]
[1742978838983,1.19020366,632.45,632.06,1.18127764]
[1742978839187,1.19020366,632.44,632.06,1.18127764]
[1742978839388,1.19020366,632.43,632.06,1.18127764]
[1742978839588,1.19020366,632.42,632.06,1.18127764]
[1742978839786,1.19020366,632.41,632.06,1.18127764]
[1742978839989,1.19020366,632.4,632.06,1.18127764]
[1742978840191,1.19020366,632.39,632.03,1.18127764]
[1742978840491,1.19020366,632.38,632.03,1.18127764]
[1742978840691,1.19020366,632.37,632.03,1.18127764]
[1742978840883,1.19020366,632.36,632.03,1.18127764]
[1742978841088,1.19020366,632.35,632.03,1.18127764]
[1742978841292,0.429,632.53,632.03,1.18127764]
[1742978841492,1.18930576,632.52,632.03,1.18127764]
[1742978841688,1.18930576,632.51,632.04,0.26477204]
[1742978841892,1.18930576,632.5,632.04,0.26477204]
[1742978842083,1.18930576,632.49,632.04,0.26477204]
[1742978842286,1.18930576,632.48,632.04,0.26477204]
[1742978842489,1.18914504,632.47,632.04,0.26477204]
[1742978842691,1.18914504,632.46,632.04,0.26477204]
[1742978842890,1.18914504,632.45,632.04,0.26477204]
[1742978843091,1.18914504,632.44,632.04,0.26477204]
[1742978843293,1.18914504,632.43,632.12,1.18127764]
[1742978843487,1.18914504,632.42,632.12,1.18127764]
[1742978843693,1.18914504,632.41,632.12,1.18127764]
[1742978843893,1.18914504,632.4,632.12,1.18127764]
[1742978844093,1.18914504,632.39,632.12,1.18127764]
[1742978844294,0.429,632.53,632.12,1.18127764]
[1742978844593,1.18896855,632.52,632.12,1.18127764]
[1742978844895,1.18896855,632.51,632.12,1.18127764]
[1742978845189,1.18896855,632.5,632.12,1.18127764]
[1742978845495,1.18896855,632.49,632.15,1.18127764]
[1742978845795,1.18896855,632.48,632.15,1.18127764]
[1742978845994,1.18896855,632.47,632.15,1.18127764]
[1742978846196,1.18896855,632.46,632.15,1.18127764]
[1742978846390,1.18896855,632.45,632.15,1.18127764]
[1742978846591,1.18896855,632.44,632.15,1.18127764]
[1742978846790,1.18896855,632.43,632.15,1.18127764]
[1742978846991,1.18896855,632.42,632.15,1.18127764]
[1742978847196,1.18896855,632.41,632.15,1.18127764]
[1742978847390,1.18896855,632.4,632.15,1.18127764]
[1742978847590,1.18896855,632.39,632.12,1.18127764]
[1742978847793,1.18896855,632.38,632.12,1.18127764]
[1742978847993,1.18896855,632.37,632.12,1.18127764]
[1742978848193,1.18896855,632.36,632.12,1.18127764]
[1742978848493,1.551,632.47,632.12,1.18127764]
[1742978848694,1.18875085,632.46,632.12,1.18127764]
[1742978848894,1.18875085,632.45,632.12,1.18127764]
[1742978849095,1.18875085,632.44,632.12,1.18127764]
[1742978849292,1.18875085,632.43,632.07,1.18127764]
[1742978849603,1.18875085,632.42,632.07,1.18127764]
[1742978849796,1.551,632.47,632.07,1.18127764]
[1742978849797,1.18875085,632.41,632.07,1.18127764]
[1742978849997,1.18873939,632.4,632.07,1.18127764]
[1742978850192,1.18873939,632.39,632.07,1.18127764]
[1742978850395,1.18873939,632.38,632.07,1.18127764]
[1742978850698,1.551,632.47,632.07,1.18127764]
[1742978850897,1.18869148,632.46,632.07,1.18127764]
[1742978851095,1.18869148,632.45,632.07,1.18127764]
[1742978851298,1.18869148,632.44,632.07,1.18127764]
[1742978851498,1.18869148,632.43,631.96,1.18127764]
[1742978851798,1.18869148,632.42,631.96,1.18127764]
[1742978851997,1.18869148,632.41,631.96,1.18127764]
[1742978852198,1.18869148,632.4,631.96,1.18127764]
[1742978852394,1.18869148,632.39,631.96,1.18127764]
[1742978852599,1.551,632.47,631.96,1.18127764]
[1742978852893,1.18872096,632.46,631.96,1.18127764]
[1742978853199,1.18872096,632.45,631.96,1.18127764]
[1742978853400,1.18872096,632.44,631.96,1.18127764]
[1742978853598,1.18872096,632.43,631.96,1.18127764]
[1742978853797,1.18872096,632.42,631.96,1.18127764]
[1742978853997,1.18872096,632.41,631.96,1.18127764]
[1742978854299,1.551,632.47,631.96,1.18127764]
[1742978854501,1.18877307,632.46,631.98,1.18127764]
[1742978854697,1.18877307,632.45,631.98,1.18127764]
[1742978854894,1.18877307,632.44,631.98,1.18127764]
[1742978855099,1.18877307,632.43,631.98,1.18127764]
[1742978855299,1.18877307,632.42,631.98,1.18127764]
[1742978855499,1.18877307,632.41,631.98,1.18127764]
[1742978855700,1.551,632.47,631.98,1.18127764]
[1742978855897,1.18884808,632.46,631.98,1.18127764]
[1742978856100,1.18884808,632.45,631.98,1.18127764]
[1742978856299,1.18884808,632.44,632.0,1.18127764]
[1742978856494,1.18888711,632.43,632.0,1.18127764]
[1742978856699,1.18888711,632.42,632.0,1.18127764]
[1742978856899,1.18888711,632.41,632.0,1.18127764]
[1742978857099,1.551,632.47,632.0,1.18127764]
[1742978857299,1.18888044,632.46,632.0,1.18127764]
[1742978857503,1.18888044,632.45,632.0,1.18127764]
[1742978857801,1.18888044,632.44,632.0,1.18127764]
[1742978858006,1.18888044,632.43,632.0,1.18127764]
[1742978858206,1.18888044,632.42,632.0,1.18127764]
[1742978858406,1.18888044,632.41,632.0,1.18127764]
[1742978858607,1.551,632.47,632.0,1.18127764]
[1742978858807,1.1889207,632.46,632.01,0.26474252]
[1742978859001,1.1889207,632.45,632.06,1.18127764]
[1742978859200,1.1889207,632.44,632.06,1.18127764]
[1742978859506,1.1889207,632.43,632.06,1.18127764]
[1742978859701,1.1889207,632.42,632.06,1.18127764]
[1742978859904,1.1889207,632.41,632.06,1.18127764]
[1742978860106,1.551,632.47,632.06,1.18127764]
[1742978860306,1.18894513,632.46,632.06,1.18127764]
[1742978860506,1.18894513,632.45,632.06,1.18127764]
[1742978860707,1.18905688,632.44,632.06,1.18127764]
[1742978861007,1.18905688,632.43,632.06,1.18127764]
[1742978861207,1.18905688,632.42,632.06,1.18127764]
[1742978861403,1.18905688,632.41,632.06,1.18127764]
[1742978861600,1.551,632.47,632.06,1.18127764]
[1742978861806,1.18908678,632.46,632.06,1.18127764]
[1742978862003,1.18908678,632.45,632.06,1.18127764]
[1742978862207,1.18908678,632.44,632.06,1.18127764]
[1742978862410,1.551,632.47,632.06,1.18127764]
[1742978862610,1.18915044,632.46,632.06,1.18127764]
[1742978862911,1.18915044,632.45,632.06,1.18127764]
[1742978863112,1.551,632.47,632.06,1.18127764]
[1742978864214,1.551,632.47,632.08,1.18127764]
[1742978867616,1.551,632.47,631.8,1.17977798]
[1742978867617,1.18956208,632.46,632.15,1.18127764]
[1742978867809,1.551,632.47,632.15,1.18127764]
[1742978868013,1.18955372,632.46,632.15,1.18127764]
[1742978868216,1.551,632.47,632.15,1.18127764]
[1742978868415,1.1895821,632.46,632.15,1.18127764]
[1742978868716,1.551,632.47,632.15,1.18127764]
[1742978869019,1.18957667,632.46,632.15,1.18127764]
[1742978869214,1.551,632.47,632.15,1.18127764]
[1742978869517,1.551,632.47,632.18,1.18127764]
[1742978869518,1.1895704,632.46,632.18,1.18127764]
[1742978869712,1.1895704,632.45,632.18,1.18127764]
[1742978869914,1.1895704,632.44,632.18,1.18127764]
[1742978870213,1.1895704,632.43,632.18,1.18127764]
[1742978870413,1.551,632.47,632.18,1.18127764]
[1742978870610,1.18961438,632.46,632.18,1.18127764]
[1742978870817,1.18961438,632.45,632.18,1.18127764]
[1742978871018,1.18961438,632.44,632.18,1.18127764]
[1742978871216,1.18961438,632.43,632.18,1.18127764]
[1742978871416,0.27516842,632.72,632.19,1.18127764]
[1742978871611,1.18965321,632.71,632.19,1.18127764]
[1742978871815,1.18965321,632.7,632.19,1.18127764]
[1742978872113,1.18965321,632.69,632.19,1.18127764]
[1742978872414,1.18965321,632.68,632.19,1.18127764]
[1742978872619,1.18967521,632.67,632.19,1.18127764]
[1742978872818,1.18967521,632.66,632.19,1.18127764]
[1742978873019,1.18967521,632.65,632.19,1.18127764]
[1742978873219,1.18967521,632.64,632.19,1.18127764]
[1742978873420,1.18967521,632.63,632.19,1.18127764]
[1742978873619,1.18967521,632.62,632.19,1.18127764]
[1742978873816,1.18978227,632.61,632.19,1.18127764]
[1742978874020,1.18978227,632.6,632.19,1.18127764]
[1742978874319,1.18978227,632.59,632.19,1.18127764]
[1742978874519,1.18978227,632.58,632.19,1.18127764]
[1742978874719,1.18982226,632.57,632.19,1.18127764]
[1742978874914,1.18982226,632.56,632.19,1.18127764]
[1742978875115,1.18982226,632.55,632.19,1.18127764]
[1742978875315,1.18982226,632.54,632.24,1.18127764]
[1742978875518,1.18982226,632.53,632.24,1.18127764]
[1742978875718,1.18984086,632.52,632.24,1.18127764]
[1742978875918,1.18984086,632.51,632.24,1.18127764]
[1742978876119,1.18984086,632.5,632.24,1.18127764]
[1742978876316,1.18984086,632.49,632.24,1.18127764]
[1742978876519,1.18984086,632.48,632.24,1.18127764]
[1742978876717,1.18984086,632.47,632.24,1.18127764]
[1742978877023,1.18984086,632.46,632.24,1.18127764]
[1742978877322,1.18984086,632.45,632.24,1.18127764]
[1742978877524,1.18984086,632.44,632.24,1.18127764]
[1742978877721,1.18984086,632.43,632.24,1.18127764]
[1742978877921,1.18984086,632.42,632.24,1.18127764]
[1742978878121,1.054,632.57,632.24,1.18127764]
[1742978878422,1.18994745,632.56,632.24,1.18127764]
[1742978878722,1.18994745,632.55,632.24,1.18127764]
[1742978878924,1.18994745,632.54,632.24,1.18127764]
[1742978879118,1.18994745,632.53,632.28,1.18127764]
[1742978879318,1.18994745,632.52,632.28,1.18127764]
[1742978879518,1.18994745,632.51,632.28,1.18127764]
[1742978879722,1.18994745,632.5,632.28,1.18127764]
[1742978879923,1.18994745,632.49,632.28,1.18127764]
[1742978880124,1.18994745,632.48,632.28,1.18127764]
[1742978880323,1.18994745,632.47,632.28,1.18127764]
[1742978880525,1.18994745,632.46,632.28,1.18127764]
[1742978880719,1.18994745,632.45,632.28,1.18127764]
[1742978880920,1.18994745,632.44,632.31,1.18127764]
[1742978881119,1.18994745,632.43,632.31,1.18127764]
[1742978881324,1.18994745,632.42,632.31,1.18127764]
[1742978881525,1.054,632.57,632.31,1.18127764]
[1742978881825,1.19018891,632.56,632.31,1.18127764]
[1742978882026,1.19018891,632.55,632.31,1.18127764]
[1742978882227,1.19018891,632.54,632.31,1.18127764]
[1742978882429,1.19018891,632.53,632.31,1.18127764]
[1742978882727,1.19018891,632.52,632.31,1.18127764]
[1742978882926,1.19018891,632.51,632.31,1.18127764]
[1742978883124,1.19018891,632.5,632.31,1.18127764]
[1742978883326,1.19018891,632.49,632.31,1.18127764]
[1742978883524,1.19018891,632.48,632.28,1.18127764]
[1742978883719,1.19018891,632.47,632.28,1.18127764]
[1742978883925,1.19018891,632.46,632.28,1.18127764]
[1742978884126,1.19018891,632.45,632.28,1.18127764]
[1742978884323,1.19018891,632.44,632.28,1.18127764]
[1742978884628,1.19018891,632.43,632.28,1.18127764]
[1742978884927,1.19018891,632.42,632.28,1.18127764]
[1742978885126,1.054,632.57,632.28,1.18127764]
[1742978885127,1.19018891,632.41,632.28,1.18127764]
[1742978885327,1.19040234,632.4,632.28,1.18127764]
[1742978885624,1.054,632.57,632.28,1.18127764]
[1742978885830,1.19039665,632.56,632.29,1.18127764]
[1742978886023,1.19039665,632.55,632.29,1.18127764]
[1742978886224,1.19039665,632.54,632.29,1.18127764]
[1742978886424,1.19039665,632.53,632.29,1.18127764]
[1742978886728,1.19039665,632.52,632.29,1.18127764]
[1742978886925,1.19039665,632.51,632.29,1.18127764]
[1742978887124,1.19039665,632.5,632.29,1.18127764]
[1742978887426,1.19039665,632.49,632.29,1.18127764]
[1742978887627,1.19039665,632.48,632.29,1.18127764]
[1742978887833,1.19039665,632.47,632.29,1.18127764]
[1742978888030,1.19039665,632.46,632.29,1.18127764]
[1742978888225,1.19039665,632.45,632.29,1.18127764]
[1742978888431,1.19039665,632.44,632.28,1.18127764]
[1742978888628,1.19039665,632.43,632.28,1.18127764]
[1742978888932,1.19039665,632.42,632.28,1.18127764]
[1742978889132,1.19039665,632.41,632.28,1.18127764]
[1742978889331,1.19039665,632.4,632.28,1.18127764]
[1742978889532,1.19039665,632.39,632.28,1.18127764]
[1742978889831,1.054,632.57,632.28,1.18127764]
[1742978890034,1.19080267,632.56,632.28,1.18127764]
[1742978890236,1.19080267,632.55,632.28,1.18127764]
[1742978890439,1.19080267,632.54,632.28,1.18127764]
[1742978890640,1.19080267,632.53,632.28,1.18127764]
[1742978890841,1.19080267,632.52,632.28,1.18127764]
[1742978891044,1.19080267,632.51,632.28,1.18127764]
[1742978891240,1.19080267,632.5,632.28,1.18127764]
[1742978891444,1.19080267,632.49,632.28,1.18127764]
[1742978891745,1.19080267,632.48,632.28,1.18127764]
[1742978891944,1.19080267,632.47,632.28,1.18127764]
[1742978892146,1.19080267,632.46,632.28,1.18127764]
[1742978892340,1.19080267,632.45,632.28,1.18127764]
[1742978892543,1.19080267,632.44,632.28,1.18127764]
[1742978892839,1.19080267,632.43,632.28,1.18127764]
[1742978893046,1.19080267,632.42,632.28,1.18127764]
[1742978893344,1.19080267,632.41,632.28,1.18127764]
[1742978893647,1.19080267,632.4,632.27,1.18127764]
[1742978893839,1.19080267,632.39,632.27,1.18127764]
[1742978894039,1.19080267,632.38,632.27,1.18127764]
[1742978894250,1.19080267,632.37,632.27,1.18127764]
[1742978894448,1.19080267,632.36,632.27,1.18127764]
[1742978894647,1.054,632.57,632.27,1.18127764]
[1742978894843,1.19073937,632.56,632.27,1.18127764]
[1742978895047,1.19073937,632.55,632.27,1.18127764]
[1742978895248,1.19073937,632.54,632.27,1.18127764]
[1742978895441,1.19073937,632.53,632.27,1.18127764]
[1742978895641,1.19073937,632.52,632.27,1.18127764]
[1742978895844,1.19073937,632.51,632.27,1.18127764]
[1742978896046,1.19073937,632.5,632.27,1.18127764]
[1742978896245,1.19073937,632.49,632.27,1.18127764]
[1742978896443,1.19073937,632.48,632.27,1.18127764]
[1742978896651,1.19073937,632.47,632.29,1.18127764]
[1742978896843,1.19073937,632.46,632.29,1.18127764]